[Event "Titled Tuesday Blitz April 12 Early 2022"]
[White "Esipenko, Andrey"]
[Black "Matlakov, Maxim"]
[WhiteFideId "24175439"]
[BlackFideId "4168003"]
[WhiteElo "2617"]
[BlackElo "2669"]
[Result "0-1"]
[Round "06"]
[TimeControl "180+1"]
[Date "2022.04.12"]
[WhiteClock "0:00:02"]
[BlackClock "0:00:27"]

1. d4 {[%clk 0:03:00]}  Nf6 {[%clk 0:02:58]} 2. c4 {[%clk 0:02:59]}  e6 {[%clk 0:02:59]} 3. Nf3 {[%clk 0:02:59]}  d5 {[%clk 0:02:58]} 4. Nc3 {[%clk 0:02:59]}  Bb4 {[%clk 0:02:55]} 5. cxd5 {[%clk 0:02:57]}  exd5 {[%clk 0:02:54]} 6. Bg5 {[%clk 0:02:58]}  h6 {[%clk 0:02:50]} 7. Bh4 {[%clk 0:02:57]}  Bf5 {[%clk 0:02:50]} 8. e3 {[%clk 0:02:56]}  O-O {[%clk 0:02:46]} 9. Be2 {[%clk 0:02:55]}  Nbd7 {[%clk 0:02:45]} 10. Qb3 {[%clk 0:02:54]}  Qe7 {[%clk 0:02:45]} 11. a3 {[%clk 0:02:43]}  Bxc3+ {[%clk 0:02:45]} 12. Qxc3 {[%clk 0:02:43]}  Qe6 {[%clk 0:02:38]} 13. O-O {[%clk 0:02:36]}  Ne4 {[%clk 0:02:27]} 14. Qxc7 {[%clk 0:02:27]}  Rfc8 {[%clk 0:02:25]} 15. Qxb7 {[%clk 0:02:27]}  Rab8 {[%clk 0:02:19]} 16. Qxa7 {[%clk 0:02:25]}  Rxb2 {[%clk 0:02:17]} 17. Rfe1 {[%clk 0:02:16]}  g5 {[%clk 0:02:05]} 18. Bg3 {[%clk 0:01:55]}  Nxg3 {[%clk 0:02:02]} 19. hxg3 {[%clk 0:01:56]}  Rcc2 {[%clk 0:02:02]} 20. Qa6 {[%clk 0:01:23]}  Rxe2 {[%clk 0:01:58]} 21. Rxe2 {[%clk 0:00:54]}  Qxa6 {[%clk 0:01:57]} 22. Rxb2 {[%clk 0:00:55]}  Nb6 {[%clk 0:01:32]} 23. a4 {[%clk 0:00:54]}  Nc4 {[%clk 0:01:17]} 24. Rb8+ {[%clk 0:00:50]}  Kg7 {[%clk 0:01:18]} 25. a5 {[%clk 0:00:44]}  Be4 {[%clk 0:01:11]} 26. Ne5 {[%clk 0:00:44]}  Nxe5 {[%clk 0:01:10]} 27. dxe5 {[%clk 0:00:44]}  g4 {[%clk 0:01:06]} 28. Rb6 {[%clk 0:00:42]}  Qa7 {[%clk 0:01:05]} 29. Rb4 {[%clk 0:00:42]}  Qe7 {[%clk 0:00:57]} 30. Rd4 {[%clk 0:00:40]}  Qa7 {[%clk 0:00:49]} 31. a6 {[%clk 0:00:40]}  h5 {[%clk 0:00:49]} 32. Rb4 {[%clk 0:00:36]}  d4 {[%clk 0:00:46]} 33. Rxd4 {[%clk 0:00:25]}  Ba8 {[%clk 0:00:47]} 34. Rd8 {[%clk 0:00:23]}  Bc6 {[%clk 0:00:46]} 35. Rd6 {[%clk 0:00:23]}  Ba8 {[%clk 0:00:37]} 36. Rd8 {[%clk 0:00:22]}  Kg6 {[%clk 0:00:36]} 37. Rad1 {[%clk 0:00:19]}  Kf5 {[%clk 0:00:34]} 38. R1d7 {[%clk 0:00:18]}  Qxa6 {[%clk 0:00:34]} 39. Rxf7+ {[%clk 0:00:15]}  Kxe5 {[%clk 0:00:33]} 40. Re8+ {[%clk 0:00:15]}  Kd5 {[%clk 0:00:33]} 41. Rf5+ {[%clk 0:00:11]}  Kc4 {[%clk 0:00:32]} 42. Rd8 {[%clk 0:00:10]}  Qc6 {[%clk 0:00:28]} 43. Rxa8 {[%clk 0:00:03]}  Qxa8 {[%clk 0:00:27]} 44. Rxh5 {[%clk 0:00:03]}  Kd3 {[%clk 0:00:28]} 45. Rb5 {[%clk 0:00:02]}  Qa1+ {[%clk 0:00:26]} 46. Kh2 {[%clk 0:00:02]}  Ke2 {[%clk 0:00:27]} 0-1


[Site "https://www.chess.com"]

[Event "Titled Tuesday Blitz April 12 Early 2022"]
[White "Estrada Nieto, Julian"]
[Black "Liyanage, Ranindu Dilshan"]
[WhiteFideId "5101018"]
[BlackFideId "9915834"]
[WhiteElo "2252"]
[BlackElo "1858"]
[Result "0-1"]
[Round "06"]
[TimeControl "180+1"]
[Date "2022.04.13"]
[WhiteClock "0:00:08"]
[BlackClock "0:00:28"]

1. e4 {[%clk 0:03:00]}  e6 {[%clk 0:02:59]} 2. d4 {[%clk 0:02:59]}  d5 {[%clk 0:03:00]} 3. Nd2 {[%clk 0:02:59]}  c5 {[%clk 0:03:00]} 4. exd5 {[%clk 0:02:59]}  Qxd5 {[%clk 0:02:59]} 5. Ngf3 {[%clk 0:02:59]}  cxd4 {[%clk 0:03:00]} 6. Bc4 {[%clk 0:02:59]}  Qd6 {[%clk 0:02:59]} 7. O-O {[%clk 0:03:00]}  Nf6 {[%clk 0:03:00]} 8. Nb3 {[%clk 0:03:00]}  Nc6 {[%clk 0:03:00]} 9. Nbxd4 {[%clk 0:03:01]}  Nxd4 {[%clk 0:03:01]} 10. Nxd4 {[%clk 0:03:01]}  Be7 {[%clk 0:03:01]} 11. Bb3 {[%clk 0:02:57]}  O-O {[%clk 0:03:00]} 12. c3 {[%clk 0:02:58]}  e5 {[%clk 0:02:55]} 13. Nc2 {[%clk 0:02:54]}  Qc7 {[%clk 0:02:55]} 14. Bg5 {[%clk 0:02:50]}  Bf5 {[%clk 0:02:53]} 15. Ne3 {[%clk 0:02:48]}  Rad8 {[%clk 0:02:52]} 16. Qf3 {[%clk 0:02:37]}  Bd3 {[%clk 0:02:51]} 17. Rfd1 {[%clk 0:02:35]}  e4 {[%clk 0:02:51]} 18. Qg3 {[%clk 0:02:32]}  Bd6 {[%clk 0:02:43]} 19. Qh4 {[%clk 0:02:31]}  Be5 {[%clk 0:02:43]} 20. Ng4 {[%clk 0:02:19]}  Nxg4 {[%clk 0:01:32]} 21. Bxd8 {[%clk 0:02:18]}  Bxh2+ {[%clk 0:01:31]} 22. Kh1 {[%clk 0:02:18]}  Rxd8 {[%clk 0:01:31]} 23. Qxg4 {[%clk 0:02:03]}  Rd6 {[%clk 0:01:32]} 24. g3 {[%clk 0:01:49]}  Rg6 {[%clk 0:01:31]} 25. Qf4 {[%clk 0:01:23]}  Qxf4 {[%clk 0:01:26]} 26. gxf4 {[%clk 0:01:23]}  Bxf4 {[%clk 0:01:27]} 27. Bc4 {[%clk 0:01:20]}  Rd6 {[%clk 0:01:06]} 28. Bxd3 {[%clk 0:01:19]}  exd3 {[%clk 0:01:07]} 29. Kg2 {[%clk 0:01:19]}  f5 {[%clk 0:00:58]} 30. Kf3 {[%clk 0:01:18]}  Bh6 {[%clk 0:00:57]} 31. c4 {[%clk 0:01:03]}  g5 {[%clk 0:00:53]} 32. c5 {[%clk 0:01:00]}  g4+ {[%clk 0:00:52]} 33. Kg3 {[%clk 0:00:57]}  Rd4 {[%clk 0:00:50]} 34. Kh4 {[%clk 0:00:45]}  d2 {[%clk 0:00:46]} 35. Kh5 {[%clk 0:00:44]}  Kg7 {[%clk 0:00:44]} 36. b3 {[%clk 0:00:40]}  Rd3 {[%clk 0:00:43]} 37. Rh1 {[%clk 0:00:35]}  Rc3 {[%clk 0:00:42]} 38. Rad1 {[%clk 0:00:26]}  Rxc5 {[%clk 0:00:41]} 39. f4 {[%clk 0:00:23]}  Bxf4 {[%clk 0:00:40]} 40. Rhf1 {[%clk 0:00:19]}  Be3 {[%clk 0:00:37]} 41. Kh4 {[%clk 0:00:17]}  Rc1 {[%clk 0:00:36]} 42. Kg3 {[%clk 0:00:14]}  Kg6 {[%clk 0:00:36]} 43. Kg2 {[%clk 0:00:13]}  f4 {[%clk 0:00:35]} 44. Rh1 {[%clk 0:00:13]}  h5 {[%clk 0:00:35]} 45. Rhf1 {[%clk 0:00:12]}  h4 {[%clk 0:00:35]} 46. Rh1 {[%clk 0:00:13]}  h3+ {[%clk 0:00:35]} 47. Kh2 {[%clk 0:00:13]}  f3 {[%clk 0:00:32]} 48. Kg3 {[%clk 0:00:13]}  Kg5 {[%clk 0:00:32]} 49. Rhf1 {[%clk 0:00:12]}  Bf4+ {[%clk 0:00:32]} 50. Kf2 {[%clk 0:00:12]}  g3+ {[%clk 0:00:29]} 51. Kxf3 {[%clk 0:00:12]}  g2 {[%clk 0:00:29]} 52. Rg1 {[%clk 0:00:13]}  Be3 {[%clk 0:00:27]} 53. Kxe3 {[%clk 0:00:12]}  Rxd1 {[%clk 0:00:27]} 54. Rxd1 {[%clk 0:00:11]}  h2 {[%clk 0:00:28]} 55. Rxd2 {[%clk 0:00:10]}  g1=Q+ {[%clk 0:00:28]} 56. Ke4 {[%clk 0:00:08]}  h1=Q+ {[%clk 0:00:28]} 0-1


[Site "https://www.chess.com"]

[Event "Titled Tuesday Blitz April 12 Early 2022"]
[White "Fathy, Elameir"]
[Black "Vlassov, Nikolai"]
[WhiteFideId "10600396"]
[BlackFideId "4103360"]
[WhiteElo "2311"]
[BlackElo "2407"]
[Result "0-1"]
[Round "06"]
[TimeControl "180+1"]
[Date "2022.04.13"]
[WhiteClock "0:00:05"]
[BlackClock "0:00:15"]

1. d4 {[%clk 0:03:00]}  Nf6 {[%clk 0:02:59]} 2. c4 {[%clk 0:03:01]}  Nc6 {[%clk 0:02:58]} 3. Nf3 {[%clk 0:03:00]}  e6 {[%clk 0:02:58]} 4. g3 {[%clk 0:03:01]}  Bb4+ {[%clk 0:02:56]} 5. Bd2 {[%clk 0:02:54]}  a5 {[%clk 0:02:56]} 6. Bg2 {[%clk 0:02:54]}  d6 {[%clk 0:02:55]} 7. O-O {[%clk 0:02:54]}  e5 {[%clk 0:02:54]} 8. Be3 {[%clk 0:02:52]}  Ng4 {[%clk 0:02:53]} 9. a3 {[%clk 0:02:30]}  exd4 {[%clk 0:02:53]} 10. Bxd4 {[%clk 0:02:14]}  Nxd4 {[%clk 0:02:42]} 11. Qxd4 {[%clk 0:02:13]}  Bc5 {[%clk 0:02:42]} 12. Qxg7 {[%clk 0:02:13]}  Qf6 {[%clk 0:02:42]} 13. Qxf6 {[%clk 0:02:12]}  Nxf6 {[%clk 0:02:43]} 14. b3 {[%clk 0:01:54]}  O-O {[%clk 0:02:37]} 15. Nc3 {[%clk 0:01:50]}  Re8 {[%clk 0:02:35]} 16. e3 {[%clk 0:01:40]}  Bf5 {[%clk 0:02:29]} 17. Nd4 {[%clk 0:01:33]}  Bxd4 {[%clk 0:02:10]} 18. exd4 {[%clk 0:01:34]}  Bc2 {[%clk 0:02:03]} 19. Bxb7 {[%clk 0:01:07]}  Rab8 {[%clk 0:02:00]} 20. Bc6 {[%clk 0:01:06]}  Re7 {[%clk 0:01:53]} 21. Ba4 {[%clk 0:00:50]}  Rb6 {[%clk 0:01:33]} 22. c5 {[%clk 0:00:35]}  dxc5 {[%clk 0:01:25]} 23. dxc5 {[%clk 0:00:36]}  Rbe6 {[%clk 0:01:24]} 24. b4 {[%clk 0:00:35]}  Bxa4 {[%clk 0:01:18]} 25. Nxa4 {[%clk 0:00:36]}  axb4 {[%clk 0:01:18]} 26. axb4 {[%clk 0:00:36]}  Re4 {[%clk 0:01:04]} 27. Rab1 {[%clk 0:00:35]}  Nd5 {[%clk 0:01:03]} 28. Rfd1 {[%clk 0:00:24]}  Nxb4 {[%clk 0:00:55]} 29. Nc3 {[%clk 0:00:24]}  Rc4 {[%clk 0:00:54]} 30. Rxb4 {[%clk 0:00:20]}  Rxc3 {[%clk 0:00:52]} 31. Rg4+ {[%clk 0:00:19]}  Kf8 {[%clk 0:00:50]} 32. Rd8+ {[%clk 0:00:19]}  Re8 {[%clk 0:00:50]} 33. Rg8+ {[%clk 0:00:08]}  Kxg8 {[%clk 0:00:50]} 34. Rxe8+ {[%clk 0:00:09]}  Kg7 {[%clk 0:00:50]} 35. Re5 {[%clk 0:00:09]}  Kf6 {[%clk 0:00:46]} 36. f4 {[%clk 0:00:08]}  Rc2 {[%clk 0:00:46]} 37. Rh5 {[%clk 0:00:07]}  Kg6 {[%clk 0:00:43]} 38. Re5 {[%clk 0:00:07]}  f6 {[%clk 0:00:41]} 39. Rd5 {[%clk 0:00:06]}  c6 {[%clk 0:00:40]} 40. f5+ {[%clk 0:00:03]}  Kg5 {[%clk 0:00:38]} 41. Rd7 {[%clk 0:00:04]}  h5 {[%clk 0:00:34]} 42. Rg7+ {[%clk 0:00:01]}  Kxf5 {[%clk 0:00:34]} 43. Rh7 {[%clk 0:00:01]}  Kg6 {[%clk 0:00:33]} 44. Rh8 {[%clk 0:00:01]}  Rxc5 {[%clk 0:00:33]} 45. Kg2 {[%clk 0:00:02]}  Rc2+ {[%clk 0:00:31]} 46. Kh3 {[%clk 0:00:02]}  c5 {[%clk 0:00:31]} 47. Rg8+ {[%clk 0:00:02]}  Kh7 {[%clk 0:00:30]} 48. Rc8 {[%clk 0:00:02]}  c4 {[%clk 0:00:29]} 49. Rc5 {[%clk 0:00:02]}  Kg6 {[%clk 0:00:29]} 50. Rc6 {[%clk 0:00:03]}  c3 {[%clk 0:00:29]} 51. Rc8 {[%clk 0:00:01]}  Rc1 {[%clk 0:00:28]} 52. Kg2 {[%clk 0:00:01]}  Kf5 {[%clk 0:00:27]} 53. Rc5+ {[%clk 0:00:02]}  Ke4 {[%clk 0:00:27]} 54. Rxh5 {[%clk 0:00:02]}  Rd1 {[%clk 0:00:18]} 55. Rc5 {[%clk 0:00:02]}  Rd2+ {[%clk 0:00:15]} 56. Kg1 {[%clk 0:00:02]}  c2 {[%clk 0:00:15]} 57. h4 {[%clk 0:00:03]}  Rd1+ {[%clk 0:00:15]} 58. Kg2 {[%clk 0:00:03]}  c1=Q {[%clk 0:00:15]} 59. Rxc1 {[%clk 0:00:04]}  Rxc1 {[%clk 0:00:16]} 60. Kh3 {[%clk 0:00:05]}  Kf3 {[%clk 0:00:16]} 61. Kh2 {[%clk 0:00:05]}  Rc2+ {[%clk 0:00:15]} 62. Kh3 {[%clk 0:00:05]}  Rg2 {[%clk 0:00:15]} 0-1


[Site "https://www.chess.com"]

[Event "Titled Tuesday Blitz April 12 Early 2022"]
[White "Ferreira, Vitor Hugo Vieira"]
[Black "Martinovici, Ilia"]
[WhiteFideId "2119765"]
[BlackFideId "13907034"]
[WhiteElo "2165"]
[BlackElo "2282"]
[Result "1-0"]
[Round "06"]
[TimeControl "180+1"]
[Date "2022.04.13"]
[WhiteClock "0:01:01"]
[BlackClock "0:00:04"]

1. d4 {[%clk 0:03:00]}  Nf6 {[%clk 0:02:57]} 2. c4 {[%clk 0:03:00]}  e6 {[%clk 0:02:56]} 3. Nf3 {[%clk 0:03:00]}  Bb4+ {[%clk 0:02:54]} 4. Nbd2 {[%clk 0:02:59]}  d5 {[%clk 0:02:54]} 5. Qa4+ {[%clk 0:02:56]}  Nc6 {[%clk 0:02:53]} 6. a3 {[%clk 0:02:56]}  Bxd2+ {[%clk 0:02:48]} 7. Bxd2 {[%clk 0:02:56]}  O-O {[%clk 0:02:44]} 8. e3 {[%clk 0:02:56]}  Bd7 {[%clk 0:02:43]} 9. Qc2 {[%clk 0:02:56]}  Re8 {[%clk 0:02:42]} 10. Bd3 {[%clk 0:02:55]}  h6 {[%clk 0:02:41]} 11. O-O {[%clk 0:02:53]}  e5 {[%clk 0:02:42]} 12. cxd5 {[%clk 0:02:48]}  Nxd5 {[%clk 0:02:41]} 13. e4 {[%clk 0:02:46]}  Nf4 {[%clk 0:02:17]} 14. Bxf4 {[%clk 0:02:44]}  exf4 {[%clk 0:02:18]} 15. h3 {[%clk 0:02:34]}  g5 {[%clk 0:01:38]} 16. d5 {[%clk 0:02:18]}  Ne5 {[%clk 0:01:34]} 17. Nxe5 {[%clk 0:02:18]}  Rxe5 {[%clk 0:01:35]} 18. Qc3 {[%clk 0:02:18]}  f6 {[%clk 0:01:29]} 19. Rac1 {[%clk 0:02:16]}  Rc8 {[%clk 0:01:29]} 20. d6 {[%clk 0:02:13]}  cxd6 {[%clk 0:01:26]} 21. Qb3+ {[%clk 0:02:13]}  Be6 {[%clk 0:01:10]} 22. Qxb7 {[%clk 0:02:07]}  f3 {[%clk 0:01:04]} 23. Rxc8 {[%clk 0:02:00]}  Bxc8 {[%clk 0:01:05]} 24. Bc4+ {[%clk 0:01:57]}  Kh8 {[%clk 0:00:59]} 25. Qf7 {[%clk 0:01:56]}  fxg2 {[%clk 0:00:56]} 26. Rd1 {[%clk 0:01:54]}  d5 {[%clk 0:00:17]} 27. Rxd5 {[%clk 0:01:44]}  Rxd5 {[%clk 0:00:17]} 28. Bxd5 {[%clk 0:01:44]}  Bxh3 {[%clk 0:00:17]} 29. Kh2 {[%clk 0:01:40]}  Bg4 {[%clk 0:00:11]} 30. Kxg2 {[%clk 0:01:38]}  h5 {[%clk 0:00:11]} 31. f3 {[%clk 0:01:31]}  Bc8 {[%clk 0:00:10]} 32. Qxh5+ {[%clk 0:01:29]}  Kg7 {[%clk 0:00:10]} 33. Qf7+ {[%clk 0:01:28]}  Kh6 {[%clk 0:00:11]} 34. Qxa7 {[%clk 0:01:18]}  g4 {[%clk 0:00:08]} 35. fxg4 {[%clk 0:01:14]}  Bxg4 {[%clk 0:00:07]} 36. Qe3+ {[%clk 0:01:14]}  Kg6 {[%clk 0:00:05]} 37. Qg3 {[%clk 0:01:13]}  Kh5 {[%clk 0:00:06]} 38. Bf7+ {[%clk 0:01:11]}  Kg5 {[%clk 0:00:05]} 39. Qe3+ {[%clk 0:01:03]}  Kh4 {[%clk 0:00:04]} 40. Qh6+ {[%clk 0:01:01]} 1-0


[Site "https://www.chess.com"]

[Event "Titled Tuesday Blitz April 12 Early 2022"]
[White "Gallegos Diaz, Carlos Alberto"]
[Black "Vusatiuk, Vladimir"]
[WhiteFideId "3900886"]
[BlackFideId "14118610"]
[WhiteElo "2362"]
[BlackElo "2157"]
[Result "1-0"]
[Round "06"]
[TimeControl "180+1"]
[Date "2022.04.13"]
[WhiteClock "0:00:12"]
[BlackClock "0:00:01"]

1. e4 {[%clk 0:03:00]}  c5 {[%clk 0:03:00]} 2. Nf3 {[%clk 0:03:00]}  Nc6 {[%clk 0:03:00]} 3. Bb5 {[%clk 0:02:59]}  g6 {[%clk 0:03:00]} 4. O-O {[%clk 0:02:59]}  Bg7 {[%clk 0:02:58]} 5. Bxc6 {[%clk 0:02:59]}  bxc6 {[%clk 0:02:57]} 6. d3 {[%clk 0:02:54]}  d6 {[%clk 0:02:38]} 7. h3 {[%clk 0:02:52]}  e5 {[%clk 0:02:26]} 8. c3 {[%clk 0:02:07]}  Qb6 {[%clk 0:02:12]} 9. Nbd2 {[%clk 0:01:57]}  Ne7 {[%clk 0:02:02]} 10. Nc4 {[%clk 0:01:55]}  Qc7 {[%clk 0:01:59]} 11. d4 {[%clk 0:01:42]}  Ba6 {[%clk 0:01:35]} 12. b3 {[%clk 0:01:01]}  Bxc4 {[%clk 0:01:28]} 13. bxc4 {[%clk 0:01:00]}  exd4 {[%clk 0:00:58]} 14. cxd4 {[%clk 0:01:01]}  cxd4 {[%clk 0:00:55]} 15. Nxd4 {[%clk 0:00:53]}  O-O {[%clk 0:00:44]} 16. Rb1 {[%clk 0:00:49]}  Qa5 {[%clk 0:00:39]} 17. Bg5 {[%clk 0:00:40]}  Qxg5 {[%clk 0:00:34]} 18. Rb7 {[%clk 0:00:39]}  Rfe8 {[%clk 0:00:31]} 19. Nf3 {[%clk 0:00:39]}  Qf4 {[%clk 0:00:27]} 20. Re1 {[%clk 0:00:38]}  c5 {[%clk 0:00:19]} 21. Qa4 {[%clk 0:00:38]}  Be5 {[%clk 0:00:12]} 22. Rxa7 {[%clk 0:00:33]}  Rxa7 {[%clk 0:00:11]} 23. Qxa7 {[%clk 0:00:34]}  Kf8 {[%clk 0:00:09]} 24. Qb7 {[%clk 0:00:32]}  Bd4 {[%clk 0:00:08]} 25. a4 {[%clk 0:00:31]}  Ng8 {[%clk 0:00:05]} 26. a5 {[%clk 0:00:30]}  Qf6 {[%clk 0:00:06]} 27. a6 {[%clk 0:00:29]}  Qe7 {[%clk 0:00:06]} 28. Qc6 {[%clk 0:00:21]}  Qa7 {[%clk 0:00:07]} 29. Qxd6+ {[%clk 0:00:21]}  Ne7 {[%clk 0:00:06]} 30. Nxd4 {[%clk 0:00:20]}  cxd4 {[%clk 0:00:07]} 31. c5 {[%clk 0:00:20]}  Ra8 {[%clk 0:00:04]} 32. Qxd4 {[%clk 0:00:20]}  Kg8 {[%clk 0:00:04]} 33. Qd6 {[%clk 0:00:18]}  Nc8 {[%clk 0:00:02]} 34. Qd8+ {[%clk 0:00:17]}  Kg7 {[%clk 0:00:02]} 35. Qd4+ {[%clk 0:00:18]}  Kg8 {[%clk 0:00:03]} 36. Qd8+ {[%clk 0:00:18]}  Kg7 {[%clk 0:00:03]} 37. Qd4+ {[%clk 0:00:18]}  f6 {[%clk 0:00:04]} 38. e5 {[%clk 0:00:17]}  fxe5 {[%clk 0:00:04]} 39. Rxe5 {[%clk 0:00:17]}  Kh6 {[%clk 0:00:03]} 40. Qe3+ {[%clk 0:00:15]}  Kg7 {[%clk 0:00:03]} 41. Qd4 {[%clk 0:00:15]}  Kh6 {[%clk 0:00:03]} 42. Qd2+ {[%clk 0:00:14]}  Kg7 {[%clk 0:00:03]} 43. Rd5 {[%clk 0:00:14]}  Qxa6 {[%clk 0:00:03]} 44. Rd7+ {[%clk 0:00:14]}  Kf8 {[%clk 0:00:01]} 45. Qf4+ {[%clk 0:00:12]} 1-0


[Site "https://www.chess.com"]

[Event "Titled Tuesday Blitz April 12 Early 2022"]
[White "Gu, Xiaobing"]
[Black "Araujo Filho, Luiz Antonio Coel"]
[WhiteFideId "8602611"]
[BlackFideId "2130661"]
[WhiteElo "2174"]
[BlackElo "2306"]
[Result "0-1"]
[Round "06"]
[TimeControl "180+1"]
[Date "2022.04.13"]
[WhiteClock "0:00:21"]
[BlackClock "0:01:13"]

1. e4 {[%clk 0:03:00]}  c6 {[%clk 0:02:59]} 2. d4 {[%clk 0:03:00]}  d5 {[%clk 0:03:00]} 3. exd5 {[%clk 0:03:00]}  cxd5 {[%clk 0:03:00]} 4. c4 {[%clk 0:03:00]}  Nf6 {[%clk 0:03:00]} 5. Nc3 {[%clk 0:03:00]}  Nc6 {[%clk 0:03:01]} 6. cxd5 {[%clk 0:03:00]}  Nxd5 {[%clk 0:03:00]} 7. Bc4 {[%clk 0:02:52]}  e6 {[%clk 0:02:59]} 8. Nf3 {[%clk 0:02:51]}  Be7 {[%clk 0:02:59]} 9. O-O {[%clk 0:02:51]}  O-O {[%clk 0:02:59]} 10. a3 {[%clk 0:02:48]}  a6 {[%clk 0:02:58]} 11. Qe2 {[%clk 0:02:43]}  b5 {[%clk 0:02:56]} 12. Bb3 {[%clk 0:02:35]}  Bb7 {[%clk 0:02:51]} 13. Ne4 {[%clk 0:02:28]}  Nf6 {[%clk 0:02:46]} 14. Nc5 {[%clk 0:02:13]}  Nxd4 {[%clk 0:02:42]} 15. Nxd4 {[%clk 0:02:08]}  Bxc5 {[%clk 0:02:43]} 16. Nf3 {[%clk 0:01:40]}  Qb6 {[%clk 0:02:14]} 17. Bg5 {[%clk 0:01:39]}  Nd5 {[%clk 0:01:59]} 18. Bc2 {[%clk 0:01:29]}  Rac8 {[%clk 0:01:56]} 19. Qd3 {[%clk 0:01:19]}  g6 {[%clk 0:01:53]} 20. Ne5 {[%clk 0:01:13]}  Qc7 {[%clk 0:01:48]} 21. Ng4 {[%clk 0:01:05]}  f5 {[%clk 0:01:40]} 22. Nh6+ {[%clk 0:00:57]}  Kg7 {[%clk 0:01:40]} 23. Rac1 {[%clk 0:00:46]}  e5 {[%clk 0:01:30]} 24. Bb3 {[%clk 0:00:42]}  Nf4 {[%clk 0:01:17]} 25. Qc3 {[%clk 0:00:21]}  Ne2+ {[%clk 0:01:13]} 0-1


[Site "https://www.chess.com"]

[Event "Titled Tuesday Blitz April 12 Early 2022"]
[White "Hansen, Eric"]
[Black "Janaszak, Dawid"]
[WhiteFideId "2606771"]
[BlackFideId "1119206"]
[WhiteElo "2568"]
[BlackElo "2199"]
[Result "0-1"]
[Round "06"]
[TimeControl "180+1"]
[Date "2022.04.13"]
[WhiteClock "0:00:01"]
[BlackClock "0:00:19"]

1. e4 {[%clk 0:02:45]}  c5 {[%clk 0:02:59]} 2. Nf3 {[%clk 0:02:43]}  Nc6 {[%clk 0:02:58]} 3. Bb5 {[%clk 0:02:43]}  g6 {[%clk 0:02:57]} 4. O-O {[%clk 0:02:43]}  Bg7 {[%clk 0:02:57]} 5. Bxc6 {[%clk 0:02:43]}  bxc6 {[%clk 0:02:58]} 6. h3 {[%clk 0:02:43]}  e5 {[%clk 0:02:57]} 7. c3 {[%clk 0:02:41]}  d6 {[%clk 0:02:56]} 8. d4 {[%clk 0:02:42]}  cxd4 {[%clk 0:02:57]} 9. cxd4 {[%clk 0:02:43]}  exd4 {[%clk 0:02:57]} 10. Nxd4 {[%clk 0:02:43]}  Nf6 {[%clk 0:02:57]} 11. Nc3 {[%clk 0:02:44]}  Qc7 {[%clk 0:02:52]} 12. Bf4 {[%clk 0:02:44]}  O-O {[%clk 0:02:50]} 13. Qd2 {[%clk 0:02:44]}  Rd8 {[%clk 0:02:39]} 14. Rac1 {[%clk 0:02:43]}  Qb6 {[%clk 0:02:31]} 15. Rfe1 {[%clk 0:02:35]}  Bb7 {[%clk 0:02:21]} 16. Bg5 {[%clk 0:02:31]}  h6 {[%clk 0:02:14]} 17. Be3 {[%clk 0:02:24]}  c5 {[%clk 0:02:08]} 18. Nb3 {[%clk 0:02:23]}  Kh7 {[%clk 0:02:01]} 19. f3 {[%clk 0:02:15]}  a5 {[%clk 0:01:53]} 20. Qc2 {[%clk 0:02:02]}  a4 {[%clk 0:01:39]} 21. Nd2 {[%clk 0:02:01]}  Qa6 {[%clk 0:01:39]} 22. Rcd1 {[%clk 0:01:41]}  Nd7 {[%clk 0:01:39]} 23. Ndb1 {[%clk 0:01:34]}  Ne5 {[%clk 0:01:38]} 24. Na3 {[%clk 0:01:34]}  Nc4 {[%clk 0:01:32]} 25. Nxc4 {[%clk 0:01:32]}  Qxc4 {[%clk 0:01:33]} 26. Rc1 {[%clk 0:01:30]}  Bc6 {[%clk 0:01:25]} 27. Red1 {[%clk 0:01:26]}  Qe6 {[%clk 0:01:22]} 28. Nd5 {[%clk 0:01:22]}  Rab8 {[%clk 0:01:16]} 29. Rb1 {[%clk 0:01:18]}  f5 {[%clk 0:01:11]} 30. Bf2 {[%clk 0:00:52]}  fxe4 {[%clk 0:01:06]} 31. fxe4 {[%clk 0:00:53]}  Be5 {[%clk 0:01:04]} 32. b4 {[%clk 0:00:50]}  axb3 {[%clk 0:01:04]} 33. Rxb3 {[%clk 0:00:48]}  Ba4 {[%clk 0:00:57]} 34. Be3 {[%clk 0:00:36]}  Bxb3 {[%clk 0:00:52]} 35. axb3 {[%clk 0:00:37]}  Rf8 {[%clk 0:00:50]} 36. Qd3 {[%clk 0:00:36]}  Qf7 {[%clk 0:00:45]} 37. Qc4 {[%clk 0:00:34]}  Qb7 {[%clk 0:00:43]} 38. Rb1 {[%clk 0:00:31]}  Qb5 {[%clk 0:00:42]} 39. Qc2 {[%clk 0:00:31]}  c4 {[%clk 0:00:40]} 40. b4 {[%clk 0:00:30]}  c3 {[%clk 0:00:40]} 41. Ra1 {[%clk 0:00:25]}  Ra8 {[%clk 0:00:39]} 42. Rb1 {[%clk 0:00:22]}  Qc4 {[%clk 0:00:37]} 43. Nb6 {[%clk 0:00:19]}  Qa2 {[%clk 0:00:37]} 44. Qd3 {[%clk 0:00:12]}  c2 {[%clk 0:00:34]} 45. Rc1 {[%clk 0:00:12]}  Ra3 {[%clk 0:00:31]} 46. Qe2 {[%clk 0:00:09]}  Qb2 {[%clk 0:00:29]} 47. Nd5 {[%clk 0:00:03]}  Ra1 {[%clk 0:00:26]} 48. Qd2 {[%clk 0:00:01]}  Rxc1+ {[%clk 0:00:25]} 49. Qxc1 {[%clk 0:00:02]}  Qxc1+ {[%clk 0:00:22]} 50. Bxc1 {[%clk 0:00:03]}  Ra8 {[%clk 0:00:22]} 51. Kf2 {[%clk 0:00:03]}  Ra1 {[%clk 0:00:22]} 52. Bd2 {[%clk 0:00:02]}  c1=Q {[%clk 0:00:23]} 53. Bxc1 {[%clk 0:00:03]}  Rxc1 {[%clk 0:00:23]} 54. g4 {[%clk 0:00:02]}  Rc2+ {[%clk 0:00:22]} 55. Ke1 {[%clk 0:00:01]}  Rb2 {[%clk 0:00:21]} 56. Kd1 {[%clk 0:00:01]}  Kg7 {[%clk 0:00:21]} 57. Kc1 {[%clk 0:00:01]}  Rh2 {[%clk 0:00:21]} 58. b5 {[%clk 0:00:01]}  Bd4 {[%clk 0:00:19]} 0-1


[Site "https://www.chess.com"]

[Event "Titled Tuesday Blitz April 12 Early 2022"]
[White "Harshavardhan G B"]
[Black "Zlatin, Alexander"]
[WhiteFideId "25059009"]
[BlackFideId "2810549"]
[WhiteElo "1831"]
[BlackElo "2228"]
[Result "1-0"]
[Round "06"]
[TimeControl "180+1"]
[Date "2022.04.13"]
[WhiteClock "0:01:56"]
[BlackClock "0:00:52"]

1. d4 {[%clk 0:03:00]}  d5 {[%clk 0:02:45]} 2. c4 {[%clk 0:02:59]}  e6 {[%clk 0:02:45]} 3. g3 {[%clk 0:02:54]}  c5 {[%clk 0:02:45]} 4. cxd5 {[%clk 0:02:53]}  exd5 {[%clk 0:02:46]} 5. Bg2 {[%clk 0:02:53]}  Nf6 {[%clk 0:02:45]} 6. Nc3 {[%clk 0:02:52]}  Nc6 {[%clk 0:02:45]} 7. Nf3 {[%clk 0:02:52]}  Be7 {[%clk 0:02:46]} 8. O-O {[%clk 0:02:51]}  c4 {[%clk 0:02:46]} 9. Ne5 {[%clk 0:02:49]}  O-O {[%clk 0:02:46]} 10. Bg5 {[%clk 0:02:49]}  Be6 {[%clk 0:02:46]} 11. f4 {[%clk 0:02:49]}  h6 {[%clk 0:02:44]} 12. Bxf6 {[%clk 0:02:47]}  Bxf6 {[%clk 0:02:45]} 13. f5 {[%clk 0:02:47]}  Bc8 {[%clk 0:02:45]} 14. Nxd5 {[%clk 0:02:43]}  Nxe5 {[%clk 0:02:36]} 15. dxe5 {[%clk 0:02:38]}  Bxe5 {[%clk 0:02:33]} 16. Rc1 {[%clk 0:02:38]}  Bd7 {[%clk 0:02:04]} 17. Rxc4 {[%clk 0:02:15]}  Bc6 {[%clk 0:01:58]} 18. b3 {[%clk 0:02:12]}  Qg5 {[%clk 0:01:37]} 19. Qc1 {[%clk 0:02:06]}  Rad8 {[%clk 0:01:25]} 20. Qxg5 {[%clk 0:02:03]}  hxg5 {[%clk 0:01:26]} 21. Ne7+ {[%clk 0:02:03]}  Kh7 {[%clk 0:01:26]} 22. Bxc6 {[%clk 0:02:04]}  bxc6 {[%clk 0:01:17]} 23. Nxc6 {[%clk 0:02:05]}  Rd5 {[%clk 0:01:14]} 24. e4 {[%clk 0:02:02]}  Rb5 {[%clk 0:00:57]} 25. a4 {[%clk 0:02:00]}  Rxb3 {[%clk 0:00:57]} 26. Nxe5 {[%clk 0:01:59]}  Rd8 {[%clk 0:00:55]} 27. Nxf7 {[%clk 0:01:58]}  Rd2 {[%clk 0:00:55]} 28. Nxg5+ {[%clk 0:01:58]}  Kh6 {[%clk 0:00:55]} 29. Nf7+ {[%clk 0:01:56]}  Kh7 {[%clk 0:00:55]} 30. Rc8 {[%clk 0:01:55]}  g6 {[%clk 0:00:53]} 31. f6 {[%clk 0:01:55]}  g5 {[%clk 0:00:52]} 32. Rh8+ {[%clk 0:01:55]}  Kg6 {[%clk 0:00:52]} 33. Ne5# {[%clk 0:01:56]} 1-0


[Site "https://www.chess.com"]